[Event "Bayerischer Schachbund IM 2024"]
[Site "Rosenheim"]
[Date "2024.08.14"]
[Round "4.7"]
[White "Zysk, Robert"]
[Black "Lucas, Arthur"]
[Result "1/2-1/2"]
[Annotator "RC"]
[ECO "D37"]
[WhiteElo "2376"]
[BlackElo "2332"]
[PlyCount "264"]
[EventDate "2024.08.12"]
[EventType "tourn"]
[EventCountry "GER"]
[SourceTitle "playchess.com"]
[Source "ChessBase"]
[SourceQuality "1"]
[TimeControl "40/5400+30:1800+30"]

1. Nf3 {[%emt 0:02:45]} d5 {[%emt 0:00:12]} 2. d4 {[%emt 0:02:31]} Nf6 {[%emt 0:00:07]} 3. c4 {[%emt 0:00:29]} e6 {[%emt 0:00:39]} 4. Nc3 {[%emt 0:00:58]} a6 {[%emt 0:00:34]} 5. cxd5 {[%emt 0:01:39]} exd5 {[%emt 0:00:05]} 6. Bf4 {[%emt 0:00:43]} Bd6 {[%emt 0:03:59]} 7. Bxd6 {[%emt 0:02:08]} Qxd6 {[%emt 0:00:05]} 8. Qc2 {[%emt 0:01:32]} Nc6 {[%emt 0:04:27]} 9. e3 {[%emt 0:01:36]} g6 {[%emt 0:09:03]} 10. Rc1 {[%emt 0:12:11]} Bf5 {[%emt 0:01:38]} 11. Qb3 {[%emt 0:02:21]} O-O {[%emt 0:00:54]} 12. Be2 {[%emt 0:00:27]} Na5 {[%emt 0:19:24]} 13. Qa4 {[%emt 0:12:16]} b6 {[%emt 0:07:11]} 14. O-O {[%emt 0:01:36]} Bd7 {[%emt 0:01:51]} 15. Qd1 {[%emt 0:00:43]} c5 {[%emt 0:07:53]} 16. dxc5 {[%emt 0:02:04]} bxc5 {[%emt 0:00:19]} 17. e4 {[%emt 0:00:17]} d4 {[%emt 0:15:04]} 18. e5 {[%emt 0:01:30]} Qe6 {[%emt 0:01:09]} 19. exf6 {[%emt 0:05:34]} dxc3 {[%emt 0:00:13]} 20. Rxc3 {[%emt 0:01:37]} Rad8 {[%emt 0:00:12]} 21. Qc1 {[%emt 0:24:36]} Nb7 {[%emt 0:04:21]} 22. Qf4 {[%emt 0:02:00]} Rfe8 {[%emt 0:09:21]} 23. Bc4 {[%emt 0:00:59]} Qf5 {[%emt 0:02:37]} 24. Qh6 {[%emt 0:04:15]} Qxf6 {[%emt 0:00:04]} 25. Ng5 {[%emt 0:00:08]} Nd6 {[%emt 0:00:16]} 26. Qxh7+ {[%emt 0:01:13]} Kf8 {[%emt 0:11:52]} 27. Qh4 {[%emt 0:02:10]} Kg7 {[%emt 0:00:00]} 28. Qh7+ {[%emt 0:02:32]} Kf8 {[%emt 0:00:00]} 29. Qh6+ {[%emt 0:02:21]} Qg7 {[%emt 0:00:00]} 30. Qxg7+ {[%emt 0:02:47]} Kxg7 {[%emt 0:00:00]} 31. Bxa6 {[%emt 0:01:28]} Ra8 {[%emt 0:00:00]} 32. Ra3 {[%emt 0:00:19]} Reb8 {[%emt 0:00:00]} 33. Rd1 {[%emt 0:01:11]} Rxb2 {[%emt 0:00:00]} 34. h4 {[%emt 0:05:57]} Rb6 {[%emt 0:00:00]} 35. Nxf7 {[%emt 0:00:26]} Nxf7 {[%emt 0:00:00]} 36. Rxd7 {[%emt 0:00:02]} Raxa6 {[%emt 0:00:00]} 37. Rc3 {[%emt 0:00:32]} Rxa2 {[%emt 0:00:00]} 38. h5 {[%emt 0:00:41]} gxh5 {[%emt 0:02:17]} 39. Rxc5 {[%emt 0:00:19]} Kg6 {[%emt 0:01:02]} 40. Rdd5 {[%emt 0:00:46]} Rb1+ {[%emt 0:00:47]} 41. Kh2 {[%emt 0:30:05]} Rxf2 {[%emt 0:05:23]} 42. Rc6+ {[%emt 0:00:00]} Kg7 {[%emt 0:00:47]} 43. Rxh5 {[%emt 0:00:00]} Rbb2 {[%emt 0:00:12]} 44. Kg3 {[%emt 0:00:00]} Rxg2+ {[%emt 0:00:11]} 45. Kf4 {[%emt 0:00:00]} Rbe2 {[%emt 0:07:50]} 46. Rd5 {[%emt 0:00:00]} Rgf2+ {[%emt 0:03:13]} 47. Kg3 {[%emt 0:00:00]} Rf1 {[%emt 0:00:34]} 48. Rd7 {[%emt 0:00:00]} Re5 {[%emt 0:02:47]} 49. Kg2 {[%emt 0:00:00]} Ref5 {[%emt 0:01:53]} 50. Ra7 {[%emt 0:01:11]} R1f2+ {[%emt 0:04:03]} 51. Kg3 {[%emt 0:00:23]} R2f3+ {[%emt 0:00:26]} 52. Kg2 {[%emt 0:00:06]} Rd3 {[%emt 0:00:44]} 53. Rca6 {[%emt 0:00:42]} Rc5 {[%emt 0:01:34]} 54. Ra2 {[%emt 0:01:17]} Kg6 {[%emt 0:01:47]} 55. R7a3 {[%emt 0:00:51]} Rdd5 {[%emt 0:01:57]} 56. Rg3+ {[%emt 0:00:27]} Ng5 {[%emt 0:00:03]} 57. Rf2 {[%emt 0:00:42]} Rd1 {[%emt 0:00:26]} 58. Rf8 {[%emt 0:00:48]} Rc2+ {[%emt 0:08:04]} 59. Rf2 {[%emt 0:00:15]} Rcc1 {[%emt 0:00:00]} 60. Rf8 {[%emt 0:00:51]} Rc2+ {[%emt 0:00:00]} 61. Rf2 {[%emt 0:00:08]} Rc8 {[%emt 0:00:00]} 62. Rf1 {[%emt 0:00:14]} Rd2+ {[%emt 0:00:00]} 63. Rf2 {[%emt 0:00:07]} Rd4 {[%emt 0:00:00]} 64. Kf1 {[%emt 0:00:26]} Rc1+ {[%emt 0:00:22]} 65. Kg2 {[%emt 0:00:30]} Kh5 {[%emt 0:00:26]} 66. Ra2 {[%emt 0:01:16]} Rdd1 {[%emt 0:00:29]} 67. Rga3 {[%emt 0:00:56]} Re1 {[%emt 0:02:37]} 68. Ra4 {[%emt 0:01:04]} Rb1 {[%emt 0:00:32]} 69. Ra8 {[%emt 0:01:09]} Kg4 {[%emt 0:00:31]} 70. R2a4+ {[%emt 0:00:28]} Ne4 {[%emt 0:00:10]} 71. Rg8+ {[%emt 0:00:19]} Kf4 {[%emt 0:00:25]} 72. Rf8+ {[%emt 0:00:17]} Ke3 {[%emt 0:00:54]} 73. Rf3+ {[%emt 0:00:43]} Kd2 {[%emt 0:00:22]} 74. Ra2+ {[%emt 0:00:16]} Kc1 {[%emt 0:00:37]} 75. Rf1 {[%emt 0:00:25]} Rxf1 {[%emt 0:00:09]} 76. Kxf1 {[%emt 0:00:11]} Rb3 {[%emt 0:00:30]} 77. Kg2 {[%emt 0:00:21]} Rg3+ {[%emt 0:00:24]} 78. Kh2 {[%emt 0:03:23]} Rg8 {[%emt 0:00:23]} 79. Kh3 {[%emt 0:00:00]} Kd1 {[%emt 0:01:04]} 80. Kh4 {[%emt 0:00:00]} Nd2 {[%emt 0:00:12]} 81. Kh5 {[%emt 0:00:00]} Ke2 {[%emt 0:00:04]} 82. Kh6 {[%emt 0:00:00]} Ke3 {[%emt 0:00:04]} 83. Kh7 {[%emt 0:00:00]} Rg1 {[%emt 0:00:08]} 84. Ra3+ {[%emt 0:00:53]} Kf4 {[%emt 0:00:07]} 85. Ra4+ {[%emt 0:00:22]} Ne4 {[%emt 0:00:08]} 86. Kh6 {[%emt 0:00:17]} Kf5 {[%emt 0:00:26]} 87. Ra5+ {[%emt 0:00:20]} Ke6 {[%emt 0:00:18]} 88. Kh5 {[%emt 0:00:39]} Nf6+ {[%emt 0:02:03]} 89. Kh4 {[%emt 0:00:52]} Nd5 {[%emt 0:00:41]} 90. Ra6+ {[%emt 0:00:45]} Ke5 {[%emt 0:00:30]} 91. Ra5 {[%emt 0:00:08]} Kf4 {[%emt 0:00:45]} 92. Ra4+ {[%emt 0:00:07]} Kf3 {[%emt 0:00:12]} 93. Ra3+ {[%emt 0:01:11]} Kf4 {[%emt 0:00:38]} 94. Ra4+ {[%emt 0:00:27]} Kf5 {[%emt 0:00:16]} 95. Ra5 {[%emt 0:00:26]} Rd1 {[%emt 0:00:31]} 96. Kg3 {[%emt 0:00:48]} Rd3+ {[%emt 0:00:07]} 97. Kf2 {[%emt 0:00:32]} Kg4 {[%emt 0:00:37]} 98. Ra8 {[%emt 0:00:38]} Rd2+ {[%emt 0:00:48]} 99. Ke1 {[%emt 0:00:31]} Rb2 {[%emt 0:00:33]} 100. Rf8 {[%emt 0:00:45]} Ne3 {[%emt 0:00:28]} 101. Rf4+ {[%emt 0:00:38]} Kg5 {[%emt 0:01:59]} 102. Rf8 {[%emt 0:00:17]} Nf5 {[%emt 0:00:00]} 103. Re8 {[%emt 0:00:35]} Kf4 {[%emt 0:00:00]} 104. Rf8 {[%emt 0:00:14]} Ke4 {[%emt 0:00:00]} 105. Re8+ {[%emt 0:01:01]} Kd3 {[%emt 0:00:00]} 106. Rd8+ {[%emt 0:00:11]} Nd4 {[%emt 0:00:00]} 107. Kf1 {[%emt 0:00:16]} Rb6 {[%emt 0:00:28]} 108. Kf2 {[%emt 0:00:29]} Rg6 {[%emt 0:00:39]} 109. Re8 {[%emt 0:00:45]} Ne6 {[%emt 0:01:00]} 110. Kf3 {[%emt 0:00:55]} Rf6+ {[%emt 0:00:18]} 111. Kg4 {[%emt 0:00:24]} Ke4 {[%emt 0:00:05]} 112. Kg3 {[%emt 0:00:31]} Kd5 {[%emt 0:00:41]} 113. Ra8 {[%emt 0:00:14]} Nd4 {[%emt 0:00:27]} 114. Re8 {[%emt 0:00:26]} Nc6 {[%emt 0:00:28]} 115. Ra8 {[%emt 0:00:33]} Ke4 {[%emt 0:00:09]} 116. Ra4+ {[%emt 0:00:17]} Nd4 {[%emt 0:00:04]} 117. Kg4 {[%emt 0:00:25]} Rg6+ {[%emt 0:00:06]} 118. Kh5 {[%emt 0:00:14]} Rg3 {[%emt 0:00:21]} 119. Kh4 {[%emt 0:00:22]} Rg7 {[%emt 0:00:16]} 120. Kh5 {[%emt 0:00:18]} Ke5 {[%emt 0:00:14]} 121. Ra5+ {[%emt 0:00:13]} Kf4 {[%emt 0:01:04]} 122. Ra4 {[%emt 0:00:45]} Kf5 {[%emt 0:00:26]} 123. Ra5+ {[%emt 0:00:18]} Kf6 {[%emt 0:00:30]} 124. Ra6+ {[%emt 0:00:37]} Ne6 {[%emt 0:00:13]} 125. Kh4 {[%emt 0:00:42]} Kf5 {[%emt 0:00:39]} 126. Ra5+ {[%emt 0:00:28]} Ke4 {[%emt 0:00:15]} 127. Ra4+ {[%emt 0:00:20]} Kd5 {[%emt 0:00:18]} 128. Ra5+ {[%emt 0:00:23]} Nc5 {[%emt 0:00:04]} 129. Kh3 {[%emt 0:00:40]} Kd4 {[%emt 0:00:07]} 130. Kh4 {[%emt 0:00:23]} Ne4 {[%emt 0:00:04]} 131. Kh5 {[%emt 0:00:41]} Rg5+ {[%emt 0:00:04]} 132. Rxg5 {[%emt 0:00:13]} Nxg5 {[%emt 0:00:04]} 1/2-1/2

[Event "Bayerischer Schachbund IM 2024"]
[Site "Rosenheim"]
[Date "2024.08.14"]
[Round "4.8"]
[White "Reimann, Sebastian"]
[Black "Schneider, Jana"]
[Result "0-1"]
[Annotator "RC"]
[ECO "C89"]
[WhiteElo "2327"]
[BlackElo "2275"]
[PlyCount "110"]
[EventDate "2024.08.12"]
[EventType "tourn"]
[EventCountry "GER"]
[SourceTitle "playchess.com"]
[Source "ChessBase"]
[SourceQuality "1"]
[TimeControl "40/5400+30:1800+30"]

1. e4 {[%emt 0:07:11]} e5 {[%emt 0:00:19]} 2. Nf3 {[%emt 0:00:07]} Nc6 {[%emt 0:00:07]} 3. Bb5 {[%emt 0:00:03]} a6 {[%emt 0:00:10]} 4. Ba4 {[%emt 0:00:06]} Nf6 {[%emt 0:00:44]} 5. O-O {[%emt 0:00:07]} Be7 {[%emt 0:01:40]} 6. Re1 {[%emt 0:00:11]} b5 {[%emt 0:00:26]} 7. Bb3 {[%emt 0:00:16]} O-O {[%emt 0:00:56]} 8. c3 {[%emt 0:00:35]} d5 {[%emt 0:04:57]} 9. exd5 {[%emt 0:00:14]} Nxd5 {[%emt 0:00:07]} 10. Nxe5 {[%emt 0:00:04]} Nxe5 {[%emt 0:00:22]} 11. Rxe5 {[%emt 0:00:07]} c6 {[%emt 0:00:25]} 12. d4 {[%emt 0:00:06]} Bd6 {[%emt 0:00:33]} 13. Re1 {[%emt 0:00:08]} Qh4 {[%emt 0:02:39]} 14. g3 {[%emt 0:00:07]} Qh3 {[%emt 0:00:28]} 15. Re4 {[%emt 0:00:08]} g5 {[%emt 0:07:07]} 16. Qf1 {[%emt 0:02:04]} Qh5 {[%emt 0:04:40]} 17. Bd1 {[%emt 0:08:54]} Qg6 {[%emt 0:01:46]} 18. Re1 {[%emt 0:07:43]} f5 {[%emt 0:16:43]} 19. Nd2 {[%emt 0:06:50]} f4 {[%emt 0:04:09]} 20. Nf3 {[%emt 0:03:00]} Qh6 {[%emt 0:08:35]} 21. Ne5 {[%emt 0:03:51]} Bh3 {[%emt 0:04:17]} 22. Qe2 {[%emt 0:03:25]} Bxe5 {[%emt 0:12:06]} 23. dxe5 {[%emt 0:00:08]} f3 {[%emt 0:05:36]} 24. Qd2 {[%emt 0:19:12]} Nf4 {[%emt 0:01:01]} 25. Bxf3 {[%emt 0:00:06]} Rad8 {[%emt 0:00:31]} 26. Qe3 {[%emt 0:00:22]} Rd3 {[%emt 0:01:56]} 27. gxf4 {[%emt 0:15:07]} Rxe3 {[%emt 0:00:24]} 28. Bxe3 {[%emt 0:00:06]} gxf4 {[%emt 0:01:30]} 29. Bc5 {[%emt 0:00:10]} Rc8 {[%emt 0:09:25]} 30. Rad1 {[%emt 0:00:46]} Kf7 {[%emt 0:01:05]} 31. Kh1 {[%emt 0:10:05]} Be6 {[%emt 0:00:28]} 32. Rd6 {[%emt 0:01:22]} Qh3 {[%emt 0:01:54]} 33. Bg2 {[%emt 0:00:33]} Qg4 {[%emt 0:02:04]} 34. f3 {[%emt 0:05:28]} Qf5 {[%emt 0:00:01]} 35. Re4 {[%emt 0:00:26]} Rg8 {[%emt 0:02:22]} 36. Bf1 {[%emt 0:07:27]} Ke8 {[%emt 0:03:50]} 37. Bb6 {[%emt 0:01:53]} Rg6 {[%emt 0:01:17]} 38. Rd8+ {[%emt 0:00:21]} Ke7 {[%emt 0:00:01]} 39. Ra8 {[%emt 0:00:36]} Bd5 {[%emt 0:00:44]} 40. Ra7+ {[%emt 0:00:33]} Ke8 {[%emt 0:02:05]} 41. Ra8+ {[%emt 0:01:06]} Kd7 {[%emt 0:07:21]} 42. e6+ {[%emt 0:03:23]} Rxe6 {[%emt 0:01:42]} 43. Rd8+ {[%emt 0:05:39]} Ke7 {[%emt 0:00:04]} 44. Rxe6+ {[%emt 0:00:14]} Qxe6 {[%emt 0:00:13]} 45. Rh8 {[%emt 0:00:18]} Qg4 {[%emt 0:11:05]} 46. Rxh7+ {[%emt 0:02:16]} Ke6 {[%emt 0:00:45]} 47. Rh6+ {[%emt 0:01:01]} Kf7 {[%emt 0:00:11]} 48. Bg2 {[%emt 0:01:02]} Bxf3 {[%emt 0:00:17]} 49. Bxf3 {[%emt 0:00:04]} Qxf3+ {[%emt 0:00:05]} 50. Kg1 {[%emt 0:00:04]} Qe2 {[%emt 0:01:37]} 51. Bf2 {[%emt 0:01:37]} f3 {[%emt 0:00:48]} 52. Rd6 {[%emt 0:00:19]} Ke7 {[%emt 0:00:36]} 53. Rd4 {[%emt 0:00:20]} c5 {[%emt 0:00:10]} 54. Rd5 {[%emt 0:00:04]} Ke6 {[%emt 0:00:43]} 55. Rd8 {[%emt 0:00:09]} Qxb2 {[%emt 0:00:33]} 0-1

[Event "Bayerischer Schachbund IM 2024"]
[Site "Rosenheim"]
[Date "2024.08.14"]
[Round "4.9"]
[White "Hasenohr, Benedict"]
[Black "Goldbeck, Lars"]
[Result "1/2-1/2"]
[Annotator "RC"]
[ECO "D35"]
[WhiteElo "2339"]
[BlackElo "2321"]
[PlyCount "99"]
[EventDate "2024.08.12"]
[EventType "tourn"]
[EventCountry "GER"]
[SourceTitle "playchess.com"]
[Source "ChessBase"]
[SourceQuality "1"]
[TimeControl "40/5400+30:1800+30"]

1. d4 {[%emt 0:00:07]} Nf6 {[%emt 0:00:14]} 2. c4 {[%emt 0:00:12]} e6 {[%emt 0:00:02]} 3. Nc3 {[%emt 0:00:07]} d5 {[%emt 0:00:03]} 4. cxd5 {[%emt 0:00:11]} exd5 {[%emt 0:00:01]} 5. Bg5 {[%emt 0:00:09]} c6 {[%emt 0:00:06]} 6. e3 {[%emt 0:00:08]} Be7 {[%emt 0:00:08]} 7. Bd3 {[%emt 0:00:17]} O-O {[%emt 0:00:27]} 8. h3 {[%emt 0:00:25]} Ne8 {[%emt 0:03:32]} 9. Bf4 {[%emt 0:04:47]} Nd7 {[%emt 0:10:39]} 10. Qc2 {[%emt 0:04:40]} Ndf6 {[%emt 0:00:43]} 11. g4 {[%emt 0:04:52]} g6 {[%emt 0:04:32]} 12. Nf3 {[%emt 0:00:16]} Ng7 {[%emt 0:04:51]} 13. Ne5 {[%emt 0:03:17]} c5 {[%emt 0:12:20]} 14. O-O {[%emt 0:26:58]} Be6 {[%emt 0:17:02]} 15. dxc5 {[%emt 0:03:30]} Bxc5 {[%emt 0:04:17]} 16. Rfd1 {[%emt 0:03:18]} Rc8 {[%emt 0:02:34]} 17. Bg5 {[%emt 0:05:09]} Be7 {[%emt 0:07:02]} 18. Qa4 {[%emt 0:00:25]} Qb6 {[%emt 0:05:05]} 19. Rd2 {[%emt 0:02:33]} Rfd8 {[%emt 0:02:54]} 20. Bf1 {[%emt 0:05:55]} Nge8 {[%emt 0:02:27]} 21. Rad1 {[%emt 0:01:02]} a6 {[%emt 0:02:13]} 22. Qf4 {[%emt 0:09:33]} Qb4 {[%emt 0:04:38]} 23. Nd3 {[%emt 0:00:47]} Qb6 {[%emt 0:01:13]} 24. Ne5 {[%emt 0:05:58]} Qb4 {[%emt 0:00:03]} 25. Qf3 {[%emt 0:00:27]} Qd6 {[%emt 0:06:16]} 26. Nc4 {[%emt 0:02:44]} Qc6 {[%emt 0:00:51]} 27. Ne5 {[%emt 0:02:26]} Qd6 {[%emt 0:00:05]} 28. Qg3 {[%emt 0:00:38]} Rxc3 {[%emt 0:02:46]} 29. bxc3 {[%emt 0:09:39]} Ne4 {[%emt 0:00:01]} 30. Bxe7 {[%emt 0:00:08]} Qxe7 {[%emt 0:00:02]} 31. Qf4 {[%emt 0:00:18]} Nxd2 {[%emt 0:00:04]} 32. Rxd2 {[%emt 0:00:06]} Rc8 {[%emt 0:00:01]} 33. c4 {[%emt 0:01:14]} dxc4 {[%emt 0:01:14]} 34. Bxc4 {[%emt 0:00:13]} Bxc4 {[%emt 0:04:50]} 35. Nxc4 {[%emt 0:00:04]} Qc7 {[%emt 0:01:01]} 36. Qxc7 {[%emt 0:02:09]} Rxc7 {[%emt 0:00:01]} 37. Ne5 {[%emt 0:01:40]} Re7 {[%emt 0:00:56]} 38. Nd7 {[%emt 0:00:30]} h6 {[%emt 0:01:48]} 39. Kg2 {[%emt 0:00:14]} Kg7 {[%emt 0:00:21]} 40. Kf3 {[%emt 0:00:45]} g5 {[%emt 0:02:16]} 41. Nc5 {[%emt 0:30:44]} Rc7 {[%emt 0:13:07]} 42. Ne4 {[%emt 0:00:00]} f6 {[%emt 0:02:16]} 43. Ng3 {[%emt 0:00:00]} Kf7 {[%emt 0:02:54]} 44. Nf5 {[%emt 0:00:00]} Ng7 {[%emt 0:00:10]} 45. Nxh6+ {[%emt 0:00:00]} Kg6 {[%emt 0:00:01]} 46. Ng8 {[%emt 0:00:00]} Kf7 {[%emt 0:00:05]} 47. Rd8 {[%emt 0:00:00]} Rc2 {[%emt 0:00:57]} 48. Nh6+ {[%emt 0:00:00]} Kg6 {[%emt 0:00:07]} 49. Ng8 {[%emt 0:00:00]} Kf7 {[%emt 0:00:06]} 50. Nh6+ {[%emt 0:00:00]} 1/2-1/2

[Event "Bayerischer Schachbund IM 2024"]
[Site "Rosenheim"]
[Date "2024.08.14"]
[Round "4.10"]
[White "Miller, Eduard"]
[Black "Georgescu, Lena"]
[Result "1-0"]
[Annotator "RC"]
[ECO "C47"]
[WhiteElo "2319"]
[BlackElo "2209"]
[PlyCount "185"]
[EventDate "2024.08.12"]
[EventType "tourn"]
[EventCountry "GER"]
[SourceTitle "playchess.com"]
[Source "ChessBase"]
[SourceQuality "1"]
[TimeControl "40/5400+30:1800+30"]

1. e4 {[%emt 0:03:33]} e5 {[%emt 0:00:04]} 2. Nf3 {[%emt 0:00:04]} Nc6 {[%emt 0:00:06]} 3. Nc3 {[%emt 0:00:05]} Nf6 {[%emt 0:00:10]} 4. d4 {[%emt 0:00:05]} exd4 {[%emt 0:00:11]} 5. Nxd4 {[%emt 0:00:05]} Bb4 {[%emt 0:00:08]} 6. Nxc6 {[%emt 0:00:06]} bxc6 {[%emt 0:00:04]} 7. Bd3 {[%emt 0:00:04]} O-O {[%emt 0:01:28]} 8. O-O {[%emt 0:00:19]} Re8 {[%emt 0:01:50]} 9. Bg5 {[%emt 0:01:57]} h6 {[%emt 0:00:25]} 10. Bh4 {[%emt 0:00:05]} d5 {[%emt 0:00:30]} 11. exd5 {[%emt 0:07:09]} g5 {[%emt 0:00:12]} 12. Bg3 {[%emt 0:01:01]} cxd5 {[%emt 0:00:10]} 13. Nb5 {[%emt 0:12:18]} Ba5 {[%emt 0:04:25]} 14. c4 {[%emt 0:28:24]} a6 {[%emt 0:18:14]} 15. Nd4 {[%emt 0:00:19]} dxc4 {[%emt 0:01:30]} 16. Bxc4 {[%emt 0:01:47]} Bb6 {[%emt 0:03:09]} 17. Nc6 {[%emt 0:03:16]} Qxd1 {[%emt 0:00:13]} 18. Rfxd1 {[%emt 0:00:27]} Be6 {[%emt 0:15:22]} 19. Ne5 {[%emt 0:11:06]} Ne4 {[%emt 0:03:38]} 20. Kf1 {[%emt 0:02:23]} Nxg3+ {[%emt 0:01:05]} 21. hxg3 {[%emt 0:00:03]} Bxc4+ {[%emt 0:01:32]} 22. Nxc4 {[%emt 0:00:02]} Rad8 {[%emt 0:00:24]} 23. b3 {[%emt 0:01:20]} Bd4 {[%emt 0:16:11]} 24. Rac1 {[%emt 0:03:33]} c5 {[%emt 0:05:19]} 25. g4 {[%emt 0:01:06]} Kg7 {[%emt 0:14:17]} 26. Re1 {[%emt 0:00:08]} Rxe1+ {[%emt 0:04:53]} 27. Rxe1 {[%emt 0:00:02]} Kf6 {[%emt 0:01:43]} 28. Re4 {[%emt 0:00:52]} a5 {[%emt 0:04:30]} 29. Nxa5 {[%emt 0:03:52]} Ra8 {[%emt 0:00:15]} 30. Nc6 {[%emt 0:00:31]} Rxa2 {[%emt 0:00:20]} 31. Nxd4 {[%emt 0:00:04]} cxd4 {[%emt 0:00:06]} 32. Rxd4 {[%emt 0:00:02]} Rb2 {[%emt 0:00:19]} 33. Rd3 {[%emt 0:00:09]} Kg6 {[%emt 0:02:10]} 34. Rd6+ {[%emt 0:12:09]} f6 {[%emt 0:00:19]} 35. Rb6 {[%emt 0:00:06]} h5 {[%emt 0:00:43]} 36. f3 {[%emt 0:01:03]} hxg4 {[%emt 0:00:23]} 37. fxg4 {[%emt 0:00:02]} Rd2 {[%emt 0:00:52]} 38. Rb4 {[%emt 0:00:48]} Kf7 {[%emt 0:00:53]} 39. Re4 {[%emt 0:03:19]} Rb2 {[%emt 0:00:22]} 40. b4 {[%emt 0:01:25]} Kg6 {[%emt 0:00:26]} 41. g3 {[%emt 0:31:49]} Rc2 {[%emt 0:26:16]} 42. Rd4 {[%emt 0:00:00]} Rb2 {[%emt 0:00:31]} 43. Rc4 {[%emt 0:00:00]} f5 {[%emt 0:03:55]} 44. Rc6+ {[%emt 0:00:00]} Kf7 {[%emt 0:00:04]} 45. gxf5 {[%emt 0:00:00]} Rxb4 {[%emt 0:00:06]} 46. Kf2 {[%emt 0:00:00]} Rb5 {[%emt 0:00:23]} 47. g4 {[%emt 0:00:00]} Rb4 {[%emt 0:00:15]} 48. Kf3 {[%emt 0:00:00]} Rb3+ {[%emt 0:02:59]} 49. Ke4 {[%emt 0:00:00]} Rg3 {[%emt 0:00:43]} 50. Ke5 {[%emt 0:00:00]} Re3+ {[%emt 0:00:21]} 51. Kd5 {[%emt 0:00:00]} Rd3+ {[%emt 0:00:38]} 52. Ke4 {[%emt 0:00:00]} Rg3 {[%emt 0:00:16]} 53. Ra6 {[%emt 0:00:00]} Rg1 {[%emt 0:00:52]} 54. Kf3 {[%emt 0:00:00]} Rf1+ {[%emt 0:00:36]} 55. Kg2 {[%emt 0:00:00]} Rf4 {[%emt 0:00:27]} 56. Kg3 {[%emt 0:00:00]} Rb4 {[%emt 0:00:18]} 57. Rg6 {[%emt 0:00:00]} Rb3+ {[%emt 0:00:08]} 58. Kf2 {[%emt 0:00:00]} Rb2+ {[%emt 0:00:21]} 59. Ke3 {[%emt 0:00:00]} Rb3+ {[%emt 0:00:18]} 60. Kd2 {[%emt 0:00:00]} Rb2+ {[%emt 0:00:34]} 61. Kc3 {[%emt 0:00:00]} Re2 {[%emt 0:01:10]} 62. Rxg5 {[%emt 0:00:00]} Re4 {[%emt 0:00:45]} 63. Kd3 {[%emt 0:00:00]} Re1 {[%emt 0:00:21]} 64. Kd4 {[%emt 0:00:00]} Re2 {[%emt 0:00:15]} 65. Rh5 {[%emt 0:00:00]} Kg7 {[%emt 0:00:58]} 66. Rg5+ {[%emt 0:00:00]} Kf7 {[%emt 0:00:13]} 67. Rg6 {[%emt 0:00:00]} Re1 {[%emt 0:00:25]} 68. Kd5 {[%emt 0:00:00]} Re2 {[%emt 0:00:27]} 69. Kd4 {[%emt 0:00:00]} Re1 {[%emt 0:00:03]} 70. Kd3 {[%emt 0:00:00]} Re8 {[%emt 0:01:03]} 71. Ra6 {[%emt 0:00:00]} Rg8 {[%emt 0:00:33]} 72. Ra4 {[%emt 0:00:00]} Kf6 {[%emt 0:00:09]} 73. Ke3 {[%emt 0:07:24]} Kg5 {[%emt 0:00:03]} 74. Ra6 {[%emt 0:01:17]} Rg7 {[%emt 0:01:03]} 75. Kf3 {[%emt 0:00:09]} Rg8 {[%emt 0:00:39]} 76. Kg3 {[%emt 0:00:14]} Rg7 {[%emt 0:00:14]} 77. Ra8 {[%emt 0:00:12]} Rb7 {[%emt 0:00:29]} 78. Rg8+ {[%emt 0:00:08]} Kf6 {[%emt 0:00:22]} 79. Rg6+ {[%emt 0:00:06]} Kf7 {[%emt 0:00:25]} 80. Kf4 {[%emt 0:00:32]} Rb4+ {[%emt 0:00:27]} 81. Kg5 {[%emt 0:00:02]} Rb7 {[%emt 0:00:39]} 82. Rh6 {[%emt 0:00:10]} Kg7 {[%emt 0:00:29]} 83. f6+ {[%emt 0:00:41]} Kg8 {[%emt 0:00:17]} 84. Rh1 {[%emt 0:00:04]} Rb4 {[%emt 0:00:50]} 85. Ra1 {[%emt 0:00:12]} Rb7 {[%emt 0:00:56]} 86. Kg6 {[%emt 0:00:09]} Rg7+ {[%emt 0:00:04]} 87. Kf5 {[%emt 0:00:04]} Rb7 {[%emt 0:00:07]} 88. g5 {[%emt 0:00:04]} Rb5+ {[%emt 0:00:33]} 89. Kg6 {[%emt 0:00:06]} Rb8 {[%emt 0:00:07]} 90. Ra7 {[%emt 0:00:24]} Rc8 {[%emt 0:01:36]} 91. Rg7+ {[%emt 0:00:05]} Kh8 {[%emt 0:00:31]} 92. Rh7+ {[%emt 0:00:05]} Kg8 {[%emt 0:00:03]} 93. f7+ {[%emt 0:00:05]} 1-0

[Event "Bayerischer Schachbund IM 2024"]
[Site "Rosenheim"]
[Date "2024.08.15"]
[Round "5.6"]
[White "Georgescu, Lena"]
[Black "Schulz, Lukas"]
[Result "1-0"]
[Annotator "RC"]
[ECO "B54"]
[WhiteElo "2209"]
[BlackElo "2298"]
[PlyCount "81"]
[EventDate "2024.08.12"]
[EventType "tourn"]
[EventCountry "GER"]
[SourceTitle "playchess.com"]
[Source "ChessBase"]
[SourceQuality "1"]
[TimeControl "40/5400+30:1800+30"]

1. e4 {[%emt 0:00:03]} c5 {[%emt 0:00:08]} 2. Nf3 {[%emt 0:00:04]} d6 {[%emt 0:00:51]} 3. d4 {[%emt 0:00:06]} cxd4 {[%emt 0:00:09]} 4. Nxd4 {[%emt 0:00:03]} a6 {[%emt 0:02:19]} 5. c4 {[%emt 0:03:19]} Nf6 {[%emt 0:00:14]} 6. Nc3 {[%emt 0:01:05]} Nbd7 {[%emt 0:02:03]} 7. Be2 {[%emt 0:10:39]} e6 {[%emt 0:01:09]} 8. Be3 {[%emt 0:02:12]} Be7 {[%emt 0:00:41]} 9. g4 {[%emt 0:03:03]} Nc5 {[%emt 0:18:27]} 10. Qc2 {[%emt 0:00:45]} h5 {[%emt 0:10:42]} 11. gxh5 {[%emt 0:01:41]} e5 {[%emt 0:11:32]} 12. Nf5 {[%emt 0:04:56]} Bxf5 {[%emt 0:01:21]} 13. exf5 {[%emt 0:00:09]} Rc8 {[%emt 0:08:39]} 14. O-O-O {[%emt 0:04:52]} Nxh5 {[%emt 0:02:28]} 15. Kb1 {[%emt 0:02:07]} Kf8 {[%emt 0:02:42]} 16. Bf3 {[%emt 0:12:00]} Nf6 {[%emt 0:10:04]} 17. Rhg1 {[%emt 0:02:35]} Rh4 {[%emt 0:07:38]} 18. Bd5 {[%emt 0:06:30]} b5 {[%emt 0:01:11]} 19. f4 {[%emt 0:08:26]} exf4 {[%emt 0:02:24]} 20. Bd4 {[%emt 0:05:07]} bxc4 {[%emt 0:00:55]} 21. Qg2 {[%emt 0:04:21]} Rh7 {[%emt 0:00:43]} 22. Bxc4 {[%emt 0:06:00]} Qd7 {[%emt 0:03:28]} 23. Qg5 {[%emt 0:02:03]} Na4 {[%emt 0:01:52]} 24. Bb3 {[%emt 0:03:38]} Nxc3+ {[%emt 0:00:05]} 25. bxc3 {[%emt 0:01:54]} f3 {[%emt 0:02:28]} 26. Qf4 {[%emt 0:02:55]} a5 {[%emt 0:00:38]} 27. Qxf3 {[%emt 0:04:54]} a4 {[%emt 0:00:43]} 28. Bc2 {[%emt 0:00:36]} Rxh2 {[%emt 0:03:16]} 29. Rg2 {[%emt 0:01:26]} Rh4 {[%emt 0:02:16]} 30. Bd3 {[%emt 0:02:00]} a3 {[%emt 0:00:52]} 31. Bc2 {[%emt 0:00:42]} Rb8+ {[%emt 0:01:30]} 32. Bb3 {[%emt 0:00:12]} Qb7 {[%emt 0:01:16]} 33. Qxb7 {[%emt 0:00:45]} Rxb7 {[%emt 0:00:03]} 34. Rdg1 {[%emt 0:00:58]} Rh7 {[%emt 0:01:05]} 35. Kc2 {[%emt 0:00:58]} Rb5 {[%emt 0:00:41]} 36. Re2 {[%emt 0:01:13]} Rxf5 {[%emt 0:00:55]} 37. Rge1 {[%emt 0:00:07]} Ng8 {[%emt 0:00:31]} 38. Bc4 {[%emt 0:01:11]} Rh6 {[%emt 0:00:39]} 39. Rb1 {[%emt 0:00:08]} Ke8 {[%emt 0:00:31]} 40. Rb8+ {[%emt 0:00:18]} Kd7 {[%emt 0:00:04]} 41. Rxg8 {[%emt 0:32:17]} 1-0